fUSD/lending_fUSD_20240727
["ID","MTS","AMOUNT","RATE_DAILY","PERIOD"]
[333310987,1722051041370,-723.86,0.00010996,2]
[333310989,1722051041379,-500.0,0.00010996,2]
[333310991,1722051041388,-500.0,0.00010996,2]
[333310993,1722051041398,-310.81,0.00010996,2]
[333310995,1722051041407,-500.0,0.00010996,2]
[333310997,1722051041416,-164.18846611,0.00010996,2]
[333310999,1722051041426,-816.0775611,0.00010997,2]
[333311001,1722051041435,-1912.3,0.00010997,2]
[333311003,1722051041445,-625.52,0.00010997,2]
[333311005,1722051041455,-820.94233055,0.00010997,2]
[333311007,1722051041464,-579.32,0.00010998,2]
[333311009,1722051041473,-187.00736554,0.00010998,2]
[333311011,1722051041483,-536.31146412,0.00010998,2]
[333311013,1722051041492,-500.0,0.00010998,2]
[333311015,1722051041501,-500.0,0.00010998,2]
[333311017,1722051041511,-500.0,0.00010998,2]
[333311019,1722051041520,-546.48,0.00010998,2]
[333311021,1722051041535,-501.44290872,0.00010998,2]
[333311023,1722051041544,-504.83224041,0.00010998,2]
[333311025,1722051041554,-310.83548499,0.00010998,2]
[333311027,1722051041565,-500.0,0.00010998,2]
[333311029,1722051041574,-500.0,0.00010998,2]
[333311031,1722051041584,-172.40151088,0.00010998,2]
[333311033,1722051041593,-500.0,0.00010998,2]
[333311035,1722051041604,-500.0,0.00010998,2]
[333311037,1722051041614,-500.0,0.00010998,2]
[333311039,1722051041623,-500.0,0.00010998,2]
[333311041,1722051041632,-500.0,0.00010998,2]
[333311043,1722051041642,-500.0,0.00010998,2]
[333311045,1722051041652,-500.0,0.00010998,2]
[333311047,1722051041661,-500.0,0.00010998,2]
[333311049,1722051041671,-500.0,0.00010998,2]
[333311051,1722051041683,-500.0,0.00010998,2]
[333311053,1722051041692,-635.11896847,0.00010998,2]
[333311055,1722051041702,-500.0,0.00010998,2]
[333311057,1722051041712,-500.0,0.00010998,2]
[333311059,1722051041722,-500.0,0.00010998,2]
[333311061,1722051041731,-500.0,0.00010998,2]
[333311063,1722051041741,-504.19777487,0.00010998,2]
[333311065,1722051041750,-501.48007812,0.00010998,2]
[333311067,1722051041759,-500.0,0.00010998,2]
[333311069,1722051041769,-193.43238697,0.00010998,2]
[333311071,1722051041779,-591.982,0.00010998,2]
[333311073,1722051041788,-501.1030169,0.00010998,2]
[333311075,1722051041798,-501.44195139,0.00010998,2]
[333311077,1722051041807,-505.6746261,0.00010998,2]
[333311079,1722051041817,-500.0,0.00010998,2]
[333311081,1722051041826,-368.73412777,0.00010998,2]
[333311083,1722051041835,-420.37165902,0.00010998,2]
[333311085,1722051041845,-500.0,0.00010998,2]
[333311087,1722051041854,-500.0,0.00010998,2]
[333311089,1722051041864,-501.81049727,0.00010998,2]
[333311091,1722051041873,-492.3369509,0.00010998,2]
[333311093,1722051041883,-500.0,0.00010998,2]
[333311095,1722051041892,-150.35276475,0.00010998,2]
[333311097,1722051041901,-500.0,0.00010998,2]
[333311099,1722051041911,-528.59434072,0.00010998,2]
[333311101,1722051041920,-500.0,0.00010998,2]
[333311103,1722051041931,-500.0,0.00010998,2]
[333311105,1722051041941,-154.5683881,0.00010998,2]
[333311107,1722051041951,-500.0,0.00010998,2]
[333311109,1722051041961,-500.0,0.00010998,2]
[333311111,1722051041970,-500.0,0.00010998,2]
[333311113,1722051041979,-500.0,0.00010998,2]
[333311115,1722051041989,-500.0,0.00010998,2]
[333311117,1722051041999,-500.0,0.00010998,2]
[333311119,1722051042009,-500.0,0.00010998,2]
[333311121,1722051042019,-260.57,0.00010998,2]
[333311123,1722051042029,-500.0,0.00010998,2]
[333311125,1722051042039,-500.0,0.00010998,2]
[333311127,1722051042049,-500.0,0.00010998,2]
[333311129,1722051042060,-500.0,0.00010998,2]
[333311132,1722051042071,-500.0,0.00010998,2]
[333311134,1722051042081,-500.0,0.00010998,2]
[333311136,1722051042090,-500.0,0.00010998,2]
[333311138,1722051042100,-500.0,0.00010998,2]
[333311140,1722051042109,-286.57138383,0.00010998,2]
[333311142,1722051042119,-500.0,0.00010998,2]
[333311144,1722051042128,-500.0,0.00010998,2]
[333311145,1722051042138,-500.0,0.00010998,2]
[333311147,1722051042147,-500.0,0.00010998,2]
[333311149,1722051042157,-500.0,0.00010998,2]
[333311151,1722051042167,-500.0,0.00010998,2]
[333311153,1722051042178,-500.0,0.00010998,2]
[333311156,1722051042188,-500.0,0.00010998,2]
[333311158,1722051042199,-500.0,0.00010998,2]
[333311160,1722051042209,-500.0,0.00010998,2]
[333311162,1722051042219,-500.0,0.00010998,2]
[333311164,1722051042229,-500.0,0.00010998,2]
[333311166,1722051042239,-500.0,0.00010998,2]
[333311168,1722051042249,-500.0,0.00010998,2]
[333311170,1722051042260,-525.17,0.00010998,2]
[333311172,1722051042270,-500.0,0.00010998,2]
[333311174,1722051042281,-500.0,0.00010998,2]
[333311176,1722051042291,-500.0,0.00010998,2]
[333311178,1722051042301,-500.0,0.00010998,2]
[333311180,1722051042312,-500.0,0.00010998,2]
[333311198,1722051042480,-832.62,0.00010998,2]
[333311200,1722051042490,-500.0,0.00010998,2]
[333311202,1722051042500,-645.68851458,0.00010998,2]
[333311204,1722051042510,-500.0,0.00010998,2]
[333311206,1722051042520,-500.0,0.00010998,2]
[333311208,1722051042534,-500.0,0.00010998,2]
[333311210,1722051042543,-500.0,0.00010998,2]
[333311212,1722051042553,-589.53,0.00010998,2]
[333311214,1722051042562,-500.0,0.00010998,2]
[333311216,1722051042573,-500.0,0.00010998,2]
[333311219,1722051042583,-500.0,0.00010998,2]
[333311222,1722051042592,-1278.83,0.00010998,2]
[333311225,1722051042601,-500.0,0.00010998,2]
[333311228,1722051042611,-500.0,0.00010998,2]
[333311231,1722051042621,-500.0,0.00010998,2]
[333311234,1722051042631,-500.0,0.00010998,2]
[333311237,1722051042641,-500.0,0.00010998,2]
[333311240,1722051042650,-500.0,0.00010998,2]
[333311241,1722051042660,-500.0,0.00010998,2]
[333311244,1722051042671,-572.87,0.00010998,2]
[333311248,1722051042681,-500.0,0.00010998,2]
[333311250,1722051042690,-500.0,0.00010998,2]
[333311253,1722051042700,-500.0,0.00010998,2]
[333311256,1722051042710,-500.0,0.00010998,2]
[333311259,1722051042720,-500.0,0.00010998,2]
[333311263,1722051042730,-500.0,0.00010998,2]
[333311266,1722051042739,-500.0,0.00010998,2]
[333311269,1722051042748,-500.0,0.00010998,2]
[333311273,1722051042758,-500.0,0.00010998,2]
[333311274,1722051042767,-500.0,0.00010998,2]
[333311278,1722051042778,-500.0,0.00010998,2]
[333311281,1722051042788,-500.0,0.00010998,2]
[333311283,1722051042798,-500.0,0.00010998,2]
[333311284,1722051042808,-500.0,0.00010998,2]
[333311285,1722051042817,-500.0,0.00010998,2]
[333311286,1722051042828,-500.0,0.00010998,2]
[333311287,1722051042837,-500.0,0.00010998,2]
[333311288,1722051042847,-500.0,0.00010998,2]
[333311289,1722051042856,-500.0,0.00010998,2]
[333311290,1722051042866,-500.0,0.00010998,2]
[333311291,1722051042876,-500.0,0.00010998,2]
[333311292,1722051042885,-500.0,0.00010998,2]
[333311293,1722051042895,-500.0,0.00010998,2]
[333311294,1722051042905,-500.0,0.00010998,2]
[333311295,1722051042914,-500.0,0.00010998,2]
[333311296,1722051042924,-544.57,0.00010998,2]
[333311297,1722051042935,-500.0,0.00010998,2]
[333311298,1722051042944,-500.0,0.00010998,2]
[333311299,1722051042954,-511.09583563,0.00010998,2]
[333311300,1722051042963,-663.36,0.00010998,2]
[333311301,1722051042972,-1005.17,0.00010998,2]
[333311302,1722051042983,-500.0,0.00010998,2]
[333311303,1722051042992,-500.0,0.00010998,2]
[333311304,1722051043002,-782.61,0.00010998,2]
[333311305,1722051043011,-500.0,0.00010998,2]
[333311306,1722051043021,-500.0,0.00010998,2]
[333311307,1722051043030,-500.0,0.00010998,2]
[333311308,1722051043039,-500.0,0.00010998,2]
[333311309,1722051043049,-529.24380578,0.00010998,2]
[333311310,1722051043058,-500.0,0.00010998,2]
[333311311,1722051043068,-1210.62,0.00010998,2]
[333311312,1722051043078,-500.0,0.00010998,2]
[333311313,1722051043088,-500.0,0.00010998,2]
[333311314,1722051043097,-500.0,0.00010998,2]
[333311315,1722051043107,-500.0,0.00010998,2]
[333311316,1722051043117,-500.0,0.00010998,2]
[333311317,1722051043127,-500.0,0.00010998,2]
[333311318,1722051043137,-500.0,0.00010998,2]
[333311319,1722051043147,-500.0,0.00010998,2]
[333311320,1722051043156,-500.0,0.00010998,2]
[333311321,1722051043166,-500.0,0.00010998,2]
[333311323,1722051043175,-500.0,0.00010998,2]
[333311324,1722051043186,-500.0,0.00010998,2]
[333311325,1722051043195,-500.0,0.00010998,2]
[333311326,1722051043204,-500.0,0.00010998,2]
[333311327,1722051043214,-1755.18,0.00010998,2]
[333311328,1722051043224,-500.0,0.00010998,2]
[333311329,1722051043233,-500.0,0.00010998,2]
[333311330,1722051043243,-1564.36,0.00010998,2]
[333311331,1722051043253,-1839.35,0.00010998,2]
[333311332,1722051043262,-500.0,0.00010998,2]
[333311333,1722051043271,-2558.17,0.00010998,2]
[333311334,1722051043281,-500.0,0.00010998,2]
[333311335,1722051043290,-500.0,0.00010998,2]
[333311336,1722051043300,-500.0,0.00010998,2]
[333311337,1722051043310,-2816.72,0.00010998,2]
[333311338,1722051043319,-1554.15,0.00010998,2]
[333311339,1722051043329,-1291.69,0.00010998,2]
[333311340,1722051043338,-500.0,0.00010998,2]
[333311341,1722051043348,-500.0,0.00010998,2]
[333311342,1722051043358,-500.0,0.00010998,2]
[333311343,1722051043367,-661.97,0.00010998,2]
[333311344,1722051043377,-500.0,0.00010998,2]
[333311345,1722051043387,-500.0,0.00010998,2]
[333311346,1722051043397,-500.0,0.00010998,2]
[333311347,1722051043407,-500.0,0.00010998,2]
[333311348,1722051043416,-500.0,0.00010998,2]
[333311349,1722051043426,-500.0,0.00010998,2]
[333311350,1722051043436,-500.0,0.00010998,2]
[333311351,1722051043446,-500.0,0.00010998,2]
[333311352,1722051043456,-1159.19,0.00010998,2]
[333311353,1722051043466,-500.0,0.00010998,2]
[333311354,1722051043476,-500.0,0.00010998,2]
[333311355,1722051043485,-500.0,0.00010998,2]
[333311356,1722051043495,-500.0,0.00010998,2]
[333311357,1722051043504,-527.34,0.00010998,2]
[333311358,1722051043514,-500.0,0.00010998,2]
[333311359,1722051043524,-728.84,0.00010998,2]
[333311360,1722051043537,-302.52278875,0.00010998,2]
[333311361,1722051043547,-1157.99,0.00010998,2]
[333311362,1722051043556,-500.0,0.00010998,2]
[333311363,1722051043567,-646.11,0.00010998,2]
[333311364,1722051043576,-500.0,0.00010998,2]
[333311365,1722051043587,-500.0,0.00010998,2]
[333311366,1722051043597,-500.0,0.00010998,2]
[333311367,1722051043608,-1488.65,0.00010998,2]
[333311368,1722051043618,-500.0,0.00010998,2]
[333311370,1722051043627,-500.0,0.00010998,2]
[333311371,1722051043637,-500.0,0.00010998,2]
[333311372,1722051043646,-500.0,0.00010998,2]
[333311373,1722051043656,-723.86,0.00010998,2]
[333311374,1722051043667,-500.0,0.00010998,2]
[333311375,1722051043676,-500.0,0.00010998,2]
[333311376,1722051043687,-515.74017624,0.00010998,2]
[333311377,1722051043696,-625.52,0.00010998,2]
[333311378,1722051043706,-625.52,0.00010998,2]
[333311381,1722051043716,-625.52,0.00010998,2]
[333311382,1722051043725,-625.52,0.00010998,2]
[333311383,1722051043735,-626.0,0.00010999,2]
[333311384,1722051043744,-762.6715,0.00010999,2]
[333311385,1722051043754,-598.61783424,0.00010999,2]
[333311386,1722051043763,-201.86831825,0.00010999,2]
[333311387,1722051043773,-500.0,0.00010999,2]
[333311388,1722051043783,-500.0,0.00010999,2]
[333311389,1722051043793,-500.0,0.00010999,2]
[333311390,1722051043803,-500.0,0.00010999,2]
[333311391,1722051043812,-500.0,0.00010999,2]
[333311392,1722051043822,-500.0,0.00010999,2]
[333311393,1722051043831,-500.0,0.00010999,2]
[333311395,1722051043841,-500.0,0.00010999,2]
[333311397,1722051043851,-500.0,0.00010999,2]
[333311399,1722051043860,-500.0,0.00010999,2]
[333311401,1722051043870,-500.0,0.00010999,2]
[333311403,1722051043879,-500.0,0.00010999,2]
[333311405,1722051043889,-500.0,0.00010999,2]
[333311407,1722051043899,-500.0,0.00010999,2]
[333311409,1722051043908,-298.09,0.00010999,2]
[333311410,1722051043918,-500.0,0.00010999,2]
[333311411,1722051043927,-500.0,0.00010999,2]
[333311412,1722051043938,-500.0,0.00010999,2]
[333311413,1722051043947,-500.0,0.00010999,2]
[333311414,1722051043956,-448.65,0.00010999,2]
[333311415,1722051043966,-500.0,0.00010999,2]
[333311416,1722051043976,-469.03,0.00010999,2]
[333311417,1722051043986,-500.0,0.00010999,2]
[333311418,1722051043997,-500.0,0.00010999,2]
[333311419,1722051044007,-152.60156026,0.00010999,2]
[333311420,1722051044016,-500.0,0.00010999,2]
[333311421,1722051044026,-1570.23817499,0.00010999,2]
[333311422,1722051044036,-500.0,0.00010999,2]
[333311423,1722051044046,-362.57,0.00010999,2]
[333311424,1722051044055,-500.0,0.00010999,2]
[333311425,1722051044064,-500.0,0.00010999,2]
[333311426,1722051044073,-500.0,0.00010999,2]
[333311427,1722051044083,-500.0,0.00010999,2]
[333311428,1722051044093,-500.0,0.00010999,2]
[333311429,1722051044103,-546.79896715,0.00010999,2]
[333311430,1722051044112,-500.0,0.00010999,2]
[333311431,1722051044121,-500.0,0.00010999,2]
[333311432,1722051044131,-500.0,0.00010999,2]
[333311433,1722051044140,-500.0,0.00010999,2]
[333311434,1722051044151,-298.6,0.00010999,2]
[333311435,1722051044161,-500.0,0.00010999,2]
[333311436,1722051044170,-500.0,0.00010999,2]
[333311437,1722051044180,-500.0,0.00010999,2]
[333311438,1722051044190,-500.0,0.00010999,2]
[333311439,1722051044199,-500.0,0.00010999,2]
[333311440,1722051044209,-500.0,0.00010999,2]
[333311441,1722051044219,-463.17888388,0.00010999,2]
[333311442,1722051044229,-500.0,0.00010999,2]
[333311443,1722051044239,-300.27559885,0.00010999,2]
[333311444,1722051044248,-500.0,0.00010999,2]
[333311445,1722051044258,-500.0,0.00010999,2]
[333311446,1722051044268,-500.0,0.00010999,2]
[333311447,1722051044277,-523.02488627,0.00010999,2]
[333311448,1722051044286,-530.12279653,0.00010999,2]
[333311449,1722051044296,-500.0,0.00010999,2]
[333311450,1722051044306,-500.0,0.00010999,2]
[333311451,1722051044315,-500.0,0.00010999,2]
[333311452,1722051044325,-500.0,0.00010999,2]
[333311453,1722051044334,-454.65534142,0.00010999,2]
[333311454,1722051044344,-500.0,0.00010999,2]
[333311455,1722051044354,-500.0,0.00010999,2]
[333311456,1722051044364,-234.70580362,0.00010999,2]
[333311457,1722051044374,-500.0,0.00010999,2]
[333311458,1722051044387,-500.0,0.00010999,2]
[333311459,1722051044397,-500.0,0.00010999,2]
[333311460,1722051044407,-500.0,0.00010999,2]
[333311461,1722051044416,-500.0,0.00010999,2]
[333311462,1722051044426,-500.0,0.00010999,2]
[333311463,1722051044436,-312.8220329,0.00010999,2]
[333311464,1722051044445,-159.8687787,0.00010999,2]
[333311465,1722051044455,-500.0,0.00010999,2]
[333311466,1722051044465,-500.0,0.00010999,2]
[333311467,1722051044475,-500.0,0.00010999,2]
[333311468,1722051044484,-500.0,0.00010999,2]
[333311469,1722051044495,-500.0,0.00010999,2]
[333311470,1722051044504,-242.5219,0.00010999,2]
[333311471,1722051044513,-150.0,0.00010999,2]
[333311472,1722051044524,-500.0,0.00010999,2]
[333311473,1722051044536,-500.0,0.00010999,2]
[333311474,1722051044545,-500.0,0.00010999,2]
[333311475,1722051044555,-500.0,0.00010999,2]
[333311476,1722051044564,-500.0,0.00010999,2]
[333311477,1722051044574,-500.0,0.00010999,2]
[333311478,1722051044584,-500.0,0.00010999,2]
[333311479,1722051044595,-500.0,0.00010999,2]
[333311480,1722051044605,-500.0,0.00010999,2]
[333311481,1722051044615,-500.0,0.00010999,2]
[333311482,1722051044624,-622.05,0.00010999,2]
[333311483,1722051044634,-500.0,0.00010999,2]
[333311484,1722051044643,-500.0,0.00010999,2]
[333311485,1722051044654,-378.51234742,0.00010999,2]
[333311486,1722051044663,-500.0,0.00010999,2]
[333311487,1722051044672,-501.7251713,0.00010999,2]
[333311488,1722051044683,-500.0,0.00010999,2]
[333311489,1722051044692,-500.0,0.00010999,2]
[333311490,1722051044701,-500.0,0.00010999,2]
[333311491,1722051044714,-500.0,0.00010999,2]
[333311492,1722051044723,-500.0,0.00010999,2]
[333311493,1722051044733,-500.0,0.00010999,2]
[333311494,1722051044742,-500.0,0.00010999,2]
[333311495,1722051044752,-500.0,0.00010999,2]
[333311496,1722051044761,-500.0,0.00010999,2]
[333311497,1722051044771,-500.0,0.00010999,2]
[333311498,1722051044780,-241.8,0.00010999,2]
[333311499,1722051044789,-500.0,0.00010999,2]
[333311500,1722051044799,-500.0,0.00010999,2]
[333311501,1722051044808,-500.0,0.00010999,2]
[333311502,1722051044818,-500.0,0.00010999,2]
[333311503,1722051044827,-500.0,0.00010999,2]
[333311504,1722051044837,-500.0,0.00010999,2]
[333311505,1722051044846,-500.0,0.00010999,2]
[333311506,1722051044855,-500.0,0.00010999,2]
[333311507,1722051044864,-500.0,0.00010999,2]
[333311508,1722051044874,-500.0,0.00010999,2]
[333311509,1722051044883,-500.0,0.00010999,2]
[333311510,1722051044893,-500.0,0.00010999,2]
[333311511,1722051044903,-500.0,0.00010999,2]
[333311512,1722051044912,-500.0,0.00010999,2]
[333311513,1722051044922,-500.0,0.00010999,2]
[333311514,1722051044931,-521.3,0.00010999,2]
[333311515,1722051044940,-500.0,0.00010999,2]
[333311516,1722051044950,-500.0,0.00010999,2]
[333311517,1722051044959,-500.0,0.00010999,2]
[333311518,1722051044969,-500.0,0.00010999,2]
[333311519,1722051044978,-500.0,0.00010999,2]
[333311520,1722051044988,-501.52036248,0.00010999,2]
[333311521,1722051044997,-500.0,0.00010999,2]
[333311522,1722051045007,-500.0,0.00010999,2]
[333311523,1722051045017,-166.1,0.00010999,2]
[333311524,1722051045026,-500.0,0.00010999,2]
[333311525,1722051045036,-500.0,0.00010999,2]
[333311526,1722051045045,-500.0,0.00010999,2]
[333311527,1722051045055,-500.0,0.00010999,2]
[333311528,1722051045064,-500.0,0.00010999,2]
[333311529,1722051045074,-556.05,0.00010999,2]
[333311530,1722051045083,-500.0,0.00010999,2]
[333311531,1722051045093,-500.0,0.00010999,2]
[333311532,1722051045103,-500.0,0.00010999,2]
[333311533,1722051045112,-500.0,0.00010999,2]
[333311534,1722051045122,-500.0,0.00010999,2]
[333311535,1722051045132,-500.0,0.00010999,2]
[333311536,1722051045141,-500.0,0.00010999,2]
[333311537,1722051045150,-500.0,0.00010999,2]
[333311538,1722051045159,-500.0,0.00010999,2]
[333311539,1722051045169,-500.0,0.00010999,2]
[333311540,1722051045178,-500.0,0.00010999,2]
[333311541,1722051045188,-500.0,0.00010999,2]
[333311542,1722051045197,-500.0,0.00010999,2]
[333311543,1722051045207,-500.0,0.00010999,2]
[333311544,1722051045216,-480.99307888,0.00010999,2]
[333311545,1722051045226,-500.0,0.00010999,2]
[333311546,1722051045235,-500.0,0.00010999,2]
[333311547,1722051045245,-500.0,0.00010999,2]
[333311548,1722051045254,-500.0,0.00010999,2]
[333311549,1722051045263,-500.0,0.00010999,2]
[333311550,1722051045273,-500.0,0.00010999,2]
[333311551,1722051045282,-500.0,0.00010999,2]
[333311552,1722051045292,-245.75,0.00010999,2]
[333311553,1722051045302,-500.0,0.00010999,2]
[333311554,1722051045311,-500.0,0.00010999,2]
[333311555,1722051045321,-500.0,0.00010999,2]
[333311556,1722051045330,-500.0,0.00010999,2]
[333311557,1722051045340,-407.6984835,0.00010999,2]
[333311563,1722051048262,-92.3015165,0.00010999,2]
[333311564,1722051048272,-202.26936694,0.00010999,2]
[333311565,1722051048286,-297.73063306,0.00010999,2]
[333311566,1722051048296,-144.46781099,0.00010999,2]
[333311567,1722051048308,-355.53218901,0.00010999,2]
[333311568,1722051048319,-294.48120745,0.00010999,2]
[333311569,1722051048331,-205.51879255,0.00010999,2]
[333311570,1722051048341,-500.0,0.00010999,2]
[333311571,1722051048350,-500.0,0.00010999,2]
[333311572,1722051048360,-500.0,0.00010999,2]
[333311573,1722051048370,-632.9816399,0.00010999,2]
[333311574,1722051048379,-500.0,0.00010999,2]
[333311575,1722051048390,-500.0,0.00010999,2]
[333311576,1722051048399,-500.0,0.00010999,2]
[333311577,1722051048410,-500.0,0.00010999,2]
[333311578,1722051048419,-500.0,0.00010999,2]
[333311579,1722051048428,-500.0,0.00010999,2]
[333311580,1722051048438,-500.0,0.00010999,2]
[333311581,1722051048447,-500.0,0.00010999,2]
[333311582,1722051048457,-500.0,0.00010999,2]
[333311583,1722051048467,-500.0,0.00010999,2]
[333311584,1722051048479,-500.0,0.00010999,2]
[333311585,1722051048493,-500.0,0.00010999,2]
[333311586,1722051048507,-500.0,0.00010999,2]
[333311587,1722051048521,-404.73635905,0.00010999,2]
[333311588,1722051048534,-500.0,0.00010999,2]
[333311589,1722051048546,-500.0,0.00010999,2]
[333311590,1722051048559,-500.0,0.00010999,2]
[333311591,1722051048572,-500.0,0.00010999,2]
[333311592,1722051048586,-500.0,0.00010999,2]
[333311593,1722051048599,-500.0,0.00010999,2]
[333311594,1722051048612,-500.0,0.00010999,2]
[333311595,1722051048624,-408.14044923,0.00010999,2]
[333311596,1722051048638,-525.17,0.00010999,2]
[333311597,1722051048651,-525.17,0.00010999,2]
[333311598,1722051048663,-525.17,0.00010999,2]
[333311599,1722051048676,-525.17,0.00010999,2]
[333311600,1722051048688,-525.17,0.00010999,2]
[333311601,1722051048702,-297.00770907,0.00010999,2]
[333311602,1722051048721,-228.16229093,0.00010999,2]
[333311603,1722051048733,-525.17,0.00010999,2]
[333311604,1722051048744,-11.95792959,0.00010999,2]
[333311605,1722051048759,-315.7795185,0.00010999,2]
[333311606,1722051048772,-197.43255191,0.00010999,2]
[333311607,1722051048786,-499.34176411,0.00010999,2]
[333311608,1722051048803,-25.82823589,0.00010999,2]
[333311609,1722051048815,-525.17,0.00010999,2]
[333311610,1722051048828,-371.53318499,0.00010999,2]
[333311611,1722051048844,-153.63681501,0.00010999,2]
[333311612,1722051048858,-328.08128903,0.00010999,2]
[333311613,1722051048874,-197.08871097,0.00010999,2]
[333311614,1722051048885,-453.31936317,0.00010999,2]
[333311615,1722051048899,-71.85063683,0.00010999,2]
[333311616,1722051048910,-376.27895071,0.00010999,2]
[333311617,1722051048927,-148.89104929,0.00010999,2]
[333311618,1722051048940,-525.17,0.00010999,2]
[333311619,1722051048953,-160.78329647,0.00010999,2]
[333311620,1722051048965,-525.17,0.00010999,2]
[333311621,1722051048978,-525.17,0.00010999,2]
[333311622,1722051048990,-525.17,0.00010999,2]
[333311623,1722051049005,-525.17,0.00010999,2]
[333311624,1722051049017,-525.17,0.00010999,2]
[333311625,1722051049029,-525.39,0.00010999,2]
[333311626,1722051049040,-500.0,0.00010999,2]
[333311627,1722051049054,-500.0,0.00010999,2]
[333311628,1722051049066,-500.0,0.00010999,2]
[333311629,1722051049079,-296.30986156,0.00010999,2]
[333311630,1722051049092,-500.0,0.00010999,2]
[333311631,1722051049104,-500.0,0.00010999,2]
[333311632,1722051049116,-500.0,0.00010999,2]
[333311633,1722051049128,-167.99998631,0.00010999,2]
[333311634,1722051049145,-332.00001369,0.00010999,2]
[333311635,1722051049157,-251.02232461,0.00010999,2]
[333311636,1722051049169,-106.28007578,0.00010999,2]
[333311637,1722051049793,-203.57884708,0.00010958,2]
[333311638,1722051049807,-129.82115292,0.00010958,2]
[333311639,1722051049824,-648.11884708,0.00010958,2]
[333311640,1722051049838,-487.49810732,0.00010978,2]
[333311641,1722051049854,-289.11697228,0.00010978,2]
[333311642,1722051049892,-38.8389204,0.00010978,2]
[333311643,1722051049903,-446.654,0.00010978,2]
[333311644,1722051049913,-777.94,0.00010996,2]
[333311645,1722051049922,-777.94,0.00010998,2]
[333311646,1722051049933,-393.71992422,0.00010999,2]
[333311647,1722051049944,-181.14577645,0.00010999,2]
[333311648,1722051049956,-318.85422355,0.00010999,2]
[333311649,1722051049967,-620.5,0.00010999,2]
[333311650,1722051049977,-38.33827592,0.00010999,2]
[333311651,1722051049990,-335.76750053,0.00010999,2]
[333311652,1722051050001,-125.89422355,0.00010999,2]
[333311653,1722051050012,-501.29148081,0.00010999,2]
[333311654,1722051050022,-360.04327123,0.00010999,2]
[333311655,1722051050034,-472.57672877,0.00010999,2]
[333311656,1722051050044,-832.62,0.00010999,2]
[333311657,1722051050054,-450.10164249,0.00010999,2]
[333311658,1722051050081,-382.51835751,0.00010999,2]
[333311659,1722051050091,-832.62,0.00010999,2]
[333311660,1722051050101,-500.0,0.00010999,2]
[333311661,1722051050111,-832.62,0.00010999,2]
[333311662,1722051050121,-500.0,0.00010999,2]
[333311663,1722051050131,-832.62,0.00010999,2]
[333311664,1722051050142,-500.0,0.00010999,2]
[333311665,1722051050151,-832.62,0.00010999,2]
[333311666,1722051050161,-500.0,0.00010999,2]
[333311667,1722051050171,-832.62,0.00010999,2]
[333311668,1722051050181,-500.0,0.00010999,2]
[333311669,1722051050191,-832.62,0.00010999,2]
[333311670,1722051050201,-500.0,0.00010999,2]